[Event "*** Titled Tuesday Blitz"]
[Site "Chess.com"]
[Date "2020.02.04"]
[Round "3"]
[White "rasmussvane"]
[Black "Eraschenkov"]
[Result "0-1"]
[WhiteElo "2837"]
[BlackElo "2620"]
[TimeControl "180+2"]
[EndTime "9:38:11 PST"]
[Termination "Eraschenkov won by resignation"]

1. Nf3 {[%clk 0:03:01.9]} 1... Nf6 {[%clk 0:03:00.7]} 2. c4 {[%clk 0:03:01.8]}
2... g6 {[%clk 0:03:01.3]} 3. Nc3 {[%clk 0:03:02.2]} 3... Bg7 {[%clk 0:03:02.2]}
4. g3 {[%clk 0:03:03.2]} 4... c6 {[%clk 0:03:03]} 5. d4 {[%clk 0:03:02.1]} 5...
d5 {[%clk 0:03:04]} 6. Qb3 {[%clk 0:03:03.3]} 6... O-O {[%clk 0:03:03.7]} 7. Bg2
{[%clk 0:03:04.3]} 7... a5 {[%clk 0:02:39.1]} 8. O-O {[%clk 0:03:04.3]} 8... a4
{[%clk 0:02:38.1]} 9. Qb4 {[%clk 0:02:49.1]} 9... dxc4 {[%clk 0:02:30.2]} 10.
Qxc4 {[%clk 0:02:48.9]} 10... Be6 {[%clk 0:02:17.3]} 11. Qd3 {[%clk 0:02:37.3]}
11... Na6 {[%clk 0:02:08.7]} 12. Rd1 {[%clk 0:02:35.9]} 12... Nb4 {[%clk
0:02:02.8]} 13. Qd2 {[%clk 0:02:35.3]} 13... Qa5 {[%clk 0:02:01.9]} 14. e4
{[%clk 0:01:37.3]} 14... Rfd8 {[%clk 0:01:58.7]} 15. Qe2 {[%clk 0:01:36.5]}
15... h6 {[%clk 0:01:36.3]} 16. Be3 {[%clk 0:01:33.5]} 16... Qh5 {[%clk
0:01:17]} 17. a3 {[%clk 0:01:25.8]} 17... Na6 {[%clk 0:01:13.2]} 18. Re1 {[%clk
0:01:16]} 18... Nc7 {[%clk 0:00:46.3]} 19. Bf4 {[%clk 0:01:10.7]} 19... Nfe8
{[%clk 0:00:46.7]} 20. Rac1 {[%clk 0:01:05.5]} 20... g5 {[%clk 0:00:44.7]} 21.
Be5 {[%clk 0:00:48.2]} 21... Nd6 {[%clk 0:00:38.2]} 22. Bxg7 {[%clk 0:00:47.3]}
22... Kxg7 {[%clk 0:00:38.9]} 23. Qc2 {[%clk 0:00:43.2]} 23... Bb3 {[%clk
0:00:38.4]} 24. Qd3 {[%clk 0:00:44.5]} 24... Nc4 {[%clk 0:00:35.5]} 25. Qe2
{[%clk 0:00:36.8]} 25... g4 {[%clk 0:00:29.3]} 26. Nd2 {[%clk 0:00:35.1]} 26...
Rxd4 {[%clk 0:00:27.4]} 27. Nxb3 {[%clk 0:00:34]} 27... axb3 {[%clk 0:00:28.7]}
28. Nb1 {[%clk 0:00:22.8]} 28... Ne5 {[%clk 0:00:28.3]} 29. Rc3 {[%clk
0:00:22.6]} 29... Ne6 {[%clk 0:00:25.9]} 30. h4 {[%clk 0:00:19.5]} 30... Rad8
{[%clk 0:00:22]} 31. Rxb3 {[%clk 0:00:19.9]} 31... R4d6 {[%clk 0:00:20.5]} 32.
Rxb7 {[%clk 0:00:20.3]} 32... Nd4 {[%clk 0:00:21.1]} 33. Qe3 {[%clk 0:00:14.1]}
33... Nc2 {[%clk 0:00:21.2]} 34. Qa7 {[%clk 0:00:08.1]} 34... Nxe1 {[%clk
0:00:21.6]} 35. Bf1 {[%clk 0:00:08.7]} 35... N1f3+ {[%clk 0:00:22]} 36. Kg2
{[%clk 0:00:09.8]} 36... Nxh4+ {[%clk 0:00:22]} 37. gxh4 {[%clk 0:00:10.1]}
37... Qxh4 {[%clk 0:00:23.5]} 38. Be2 {[%clk 0:00:08.9]} 38... Qh3+ {[%clk
0:00:24]} 0-1

[Event "*** Titled Tuesday Blitz"]
[Site "Chess.com"]
[Date "2020.02.04"]
[Round "3"]
[White "FearNoEvil12"]
[Black "norwaytoadog"]
[Result "1/2-1/2"]
[WhiteElo "2008"]
[BlackElo "2305"]
[TimeControl "180+2"]
[EndTime "9:38:11 PST"]
[Termination "Game drawn by repetition"]

1. e4 {[%clk 0:03:01.9]} 1... e5 {[%clk 0:03:00.6]} 2. d4 {[%clk 0:03:01.7]}
2... exd4 {[%clk 0:03:01.5]} 3. Bc4 {[%clk 0:03:02.9]} 3... Nc6 {[%clk
0:02:58.5]} 4. Nf3 {[%clk 0:03:02.9]} 4... Nf6 {[%clk 0:02:58.6]} 5. e5 {[%clk
0:03:01.7]} 5... d5 {[%clk 0:02:59.6]} 6. Bb5 {[%clk 0:03:02.8]} 6... Nd7 {[%clk
0:03:00.5]} 7. Bxc6 {[%clk 0:03:00.9]} 7... bxc6 {[%clk 0:03:01.8]} 8. Qxd4
{[%clk 0:03:01.9]} 8... Nc5 {[%clk 0:02:49.2]} 9. Nc3 {[%clk 0:03:00.5]} 9...
Ne6 {[%clk 0:02:48.4]} 10. Qd3 {[%clk 0:03:00.3]} 10... Rb8 {[%clk 0:02:44.4]}
11. b3 {[%clk 0:02:57.8]} 11... Be7 {[%clk 0:02:39.7]} 12. O-O {[%clk
0:02:57.2]} 12... O-O {[%clk 0:02:40.2]} 13. Bb2 {[%clk 0:02:57.1]} 13... f6
{[%clk 0:02:40.2]} 14. exf6 {[%clk 0:02:52.7]} 14... Bxf6 {[%clk 0:02:41]} 15.
Rab1 {[%clk 0:02:53.5]} 15... Nf4 {[%clk 0:02:25.4]} 16. Qd2 {[%clk 0:02:53]}
16... Qd6 {[%clk 0:02:15.1]} 17. Ne2 {[%clk 0:02:38.2]} 17... Bxb2 {[%clk
0:02:08.1]} 18. Nxf4 {[%clk 0:02:36.7]} 18... Rxf4 {[%clk 0:02:06.9]} 19. Rxb2
{[%clk 0:02:36.2]} 19... Rxf3 {[%clk 0:01:41.4]} 20. gxf3 {[%clk 0:02:35.8]}
20... Qg6+ {[%clk 0:01:42]} 21. Kh1 {[%clk 0:02:31.2]} 21... Qf6 {[%clk
0:01:23.8]} 22. Qe3 {[%clk 0:01:53.4]} 22... Bh3 {[%clk 0:01:05.7]} 23. Rbb1
{[%clk 0:01:49.6]} 23... d4 {[%clk 0:00:54.7]} 24. Qe4 {[%clk 0:01:41.9]} 24...
Bxf1 {[%clk 0:00:46.9]} 25. Rxf1 {[%clk 0:01:41.2]} 25... Rf8 {[%clk 0:00:40.4]}
26. Rd1 {[%clk 0:01:29.5]} 26... Qxf3+ {[%clk 0:00:35.6]} 27. Qxf3 {[%clk
0:01:30.3]} 27... Rxf3 {[%clk 0:00:36.9]} 28. Rxd4 {[%clk 0:01:30.2]} 28... Rxf2
{[%clk 0:00:36.9]} 29. Rc4 {[%clk 0:01:31.6]} 29... Rf6 {[%clk 0:00:32.2]} 30.
Kg2 {[%clk 0:01:32.4]} 30... Kf7 {[%clk 0:00:27.8]} 31. Ra4 {[%clk 0:01:32.3]}
31... Rd6 {[%clk 0:00:25.7]} 32. c4 {[%clk 0:01:29]} 32... g5 {[%clk 0:00:19.6]}
33. Rxa7 {[%clk 0:01:28.8]} 33... Rd7 {[%clk 0:00:20.8]} 34. Ra5 {[%clk
0:01:29.4]} 34... Kf6 {[%clk 0:00:21.3]} 35. Rc5 {[%clk 0:01:29.2]} 35... Rd6
{[%clk 0:00:21]} 36. a4 {[%clk 0:01:30]} 36... h5 {[%clk 0:00:21.9]} 37. a5
{[%clk 0:01:30.5]} 37... g4 {[%clk 0:00:22.8]} 38. a6 {[%clk 0:01:31.4]} 38...
h4 {[%clk 0:00:23.1]} 39. a7 {[%clk 0:01:31.9]} 39... Rd2+ {[%clk 0:00:24.2]}
40. Kg1 {[%clk 0:01:31.5]} 40... Ra2 {[%clk 0:00:25.3]} 41. Rxc6+ {[%clk
0:01:30.8]} 41... Ke5 {[%clk 0:00:25.6]} 42. Rxc7 {[%clk 0:01:31.9]} 42... Kf4
{[%clk 0:00:25.2]} 43. Rf7+ {[%clk 0:01:24]} 43... Ke3 {[%clk 0:00:26.2]} 44. b4
{[%clk 0:01:22.7]} 44... h3 {[%clk 0:00:27]} 45. Rf1 {[%clk 0:01:10.9]} 45...
Rg2+ {[%clk 0:00:27.3]} 46. Kh1 {[%clk 0:01:11]} 46... Ra2 {[%clk 0:00:25.5]}
47. Rb1 {[%clk 0:01:11]} 47... Kf3 {[%clk 0:00:23.7]} 48. b5 {[%clk 0:01:07.8]}
48... g3 {[%clk 0:00:21.8]} 49. hxg3 {[%clk 0:01:07.6]} 49... Kxg3 {[%clk
0:00:22.2]} 50. b6 {[%clk 0:01:01.8]} 50... Rh2+ {[%clk 0:00:21.8]} 51. Kg1
{[%clk 0:01:02.8]} 51... Rg2+ {[%clk 0:00:22.8]} 52. Kf1 {[%clk 0:00:55.6]}
52... Rf2+ {[%clk 0:00:23.9]} 53. Kg1 {[%clk 0:00:55.9]} 53... Rg2+ {[%clk
0:00:24.7]} 54. Kh1 {[%clk 0:00:57.4]} 54... Rh2+ {[%clk 0:00:25.5]} 55. Kg1
{[%clk 0:00:58.3]} 55... Rg2+ {[%clk 0:00:26.8]} 1/2-1/2

[Event "*** Titled Tuesday Blitz"]
[Site "Chess.com"]
[Date "2020.02.04"]
[Round "3"]
[White "BvsN"]
[Black "novocane"]
[Result "0-1"]
[WhiteElo "2354"]
[BlackElo "2155"]
[TimeControl "180+2"]
[EndTime "9:38:14 PST"]
[Termination "novocane won by checkmate"]

1. d4 {[%clk 0:03:01.9]} 1... Nf6 {[%clk 0:03:00.5]} 2. c4 {[%clk 0:03:03.1]}
2... e6 {[%clk 0:03:01.2]} 3. Nc3 {[%clk 0:03:04.1]} 3... Bb4 {[%clk 0:03:01.5]}
4. f3 {[%clk 0:03:04.9]} 4... c5 {[%clk 0:03:01.6]} 5. d5 {[%clk 0:03:05.6]}
5... d6 {[%clk 0:03:01.9]} 6. e4 {[%clk 0:03:06.3]} 6... b5 {[%clk 0:03:02.8]}
7. Bd2 {[%clk 0:02:55.5]} 7... exd5 {[%clk 0:02:12.8]} 8. cxd5 {[%clk
0:02:55.6]} 8... a6 {[%clk 0:02:09]} 9. Nge2 {[%clk 0:02:56]} 9... O-O {[%clk
0:02:07.6]} 10. Ng3 {[%clk 0:02:55.1]} 10... Re8 {[%clk 0:02:01.4]} 11. Be2
{[%clk 0:02:56]} 11... c4 {[%clk 0:01:30.3]} 12. O-O {[%clk 0:02:56.7]} 12...
Bc5+ {[%clk 0:01:28.3]} 13. Kh1 {[%clk 0:02:57.5]} 13... Qb6 {[%clk 0:01:07.6]}
14. Rb1 {[%clk 0:02:55.1]} 14... Nbd7 {[%clk 0:00:51.8]} 15. b4 {[%clk
0:02:53.9]} 15... Be3 {[%clk 0:00:45.3]} 16. a4 {[%clk 0:02:19.2]} 16... Bxd2
{[%clk 0:00:18.8]} 17. Qxd2 {[%clk 0:02:20.1]} 17... Ne5 {[%clk 0:00:20.3]} 18.
Ra1 {[%clk 0:01:56.4]} 18... Bd7 {[%clk 0:00:20.3]} 19. Ra3 {[%clk 0:01:48.1]}
19... bxa4 {[%clk 0:00:19]} 20. Nxa4 {[%clk 0:01:46.2]} 20... Bxa4 {[%clk
0:00:19.2]} 21. Rxa4 {[%clk 0:01:47.3]} 21... Rab8 {[%clk 0:00:17.8]} 22. Qc3
{[%clk 0:01:42.2]} 22... h6 {[%clk 0:00:17.6]} 23. Rfa1 {[%clk 0:01:40.1]} 23...
Qf2 {[%clk 0:00:14.5]} 24. Qe1 {[%clk 0:01:23.9]} 24... Qd4 {[%clk 0:00:12.6]}
25. Rxa6 {[%clk 0:01:14.9]} 25... c3 {[%clk 0:00:11.3]} 26. Nf5 {[%clk 0:01:14]}
26... Qxb4 {[%clk 0:00:11.1]} 27. Nxd6 {[%clk 0:01:11.4]} 27... Red8 {[%clk
0:00:09.2]} 28. Nf5 {[%clk 0:01:06.7]} 28... c2 {[%clk 0:00:08.1]} 29. Qg3
{[%clk 0:00:53.6]} 29... Qb1+ {[%clk 0:00:07.7]} 30. Bf1 {[%clk 0:00:54.4]}
30... Nh5 {[%clk 0:00:08.8]} 31. Qxe5 {[%clk 0:00:40.8]} 31... c1=Q {[%clk
0:00:09.8]} 32. Ne7+ {[%clk 0:00:31.9]} 32... Kf8 {[%clk 0:00:07.5]} 33. Rxb1
{[%clk 0:00:25.7]} 33... Rxb1 {[%clk 0:00:08]} 34. h4 {[%clk 0:00:08.3]} 34...
Qxf1+ {[%clk 0:00:08.7]} 35. Kh2 {[%clk 0:00:09.8]} 35... Qh1# {[%clk
0:00:09.3]} 0-1

[Event "*** Titled Tuesday Blitz"]
[Site "Chess.com"]
[Date "2020.02.04"]
[Round "3"]
[White "GHANDEEVAM2003"]
[Black "tarantul1"]
[Result "1-0"]
[WhiteElo "2948"]
[BlackElo "2604"]
[TimeControl "180+2"]
[EndTime "9:38:21 PST"]
[Termination "GHANDEEVAM2003 won by resignation"]

1. c4 {[%clk 0:03:01.9]} 1... e6 {[%clk 0:02:58.5]} 2. g3 {[%clk 0:03:01.4]}
2... Nf6 {[%clk 0:02:59.4]} 3. Bg2 {[%clk 0:03:02.7]} 3... d5 {[%clk 0:03:01.3]}
4. d4 {[%clk 0:03:03.9]} 4... dxc4 {[%clk 0:03:01.1]} 5. Nh3 {[%clk 0:03:04.9]}
5... c5 {[%clk 0:02:53.7]} 6. Be3 {[%clk 0:03:03.2]} 6... cxd4 {[%clk
0:02:46.6]} 7. Qxd4 {[%clk 0:03:05.1]} 7... Qxd4 {[%clk 0:02:38.9]} 8. Bxd4
{[%clk 0:03:07]} 8... Nc6 {[%clk 0:02:36.4]} 9. Bc3 {[%clk 0:03:07.5]} 9... Nd5
{[%clk 0:02:18.6]} 10. O-O {[%clk 0:03:08.9]} 10... Nxc3 {[%clk 0:02:14.2]} 11.
Nxc3 {[%clk 0:03:10.8]} 11... Bb4 {[%clk 0:02:07.9]} 12. Rac1 {[%clk 0:03:10.3]}
12... O-O {[%clk 0:02:04.1]} 13. Nf4 {[%clk 0:03:03.4]} 13... Rd8 {[%clk
0:01:48.3]} 14. a3 {[%clk 0:03:01]} 14... Bxc3 {[%clk 0:01:42.8]} 15. Rxc3
{[%clk 0:03:02.9]} 15... Ne5 {[%clk 0:01:44.2]} 16. Rfc1 {[%clk 0:02:58.3]}
16... Bd7 {[%clk 0:01:39.2]} 17. Re3 {[%clk 0:02:24.5]} 17... f6 {[%clk
0:01:36.3]} 18. Bxb7 {[%clk 0:02:17]} 18... Rab8 {[%clk 0:01:35.1]} 19. Ba6
{[%clk 0:02:18.3]} 19... Rxb2 {[%clk 0:01:26.8]} 20. Rd1 {[%clk 0:02:02.9]}
20... Rdb8 {[%clk 0:01:15.7]} 21. Rxd7 {[%clk 0:01:41]} 21... Nxd7 {[%clk
0:01:10.4]} 22. Bxc4 {[%clk 0:01:42.4]} 22... Nc5 {[%clk 0:01:05.5]} 23. Nxe6
{[%clk 0:01:38.8]} 23... Nxe6 {[%clk 0:01:05.8]} 24. Rxe6 {[%clk 0:01:40.7]}
24... Kf8 {[%clk 0:01:03.6]} 25. Kg2 {[%clk 0:01:32.6]} 25... R8b6 {[%clk
0:01:00.4]} 26. Re3 {[%clk 0:01:32.1]} 26... Rc2 {[%clk 0:00:56.2]} 27. Re4
{[%clk 0:01:29.6]} 27... g6 {[%clk 0:00:52.9]} 28. Bd3 {[%clk 0:01:27.3]} 28...
Rc3 {[%clk 0:00:51.6]} 29. a4 {[%clk 0:01:28.5]} 29... Ra3 {[%clk 0:00:52.3]}
30. Rd4 {[%clk 0:01:25]} 30... Rb7 {[%clk 0:00:49.1]} 31. g4 {[%clk 0:01:23.9]}
31... Ke7 {[%clk 0:00:49.4]} 32. Bb5 {[%clk 0:01:23.6]} 32... Rc7 {[%clk
0:00:43.1]} 33. h4 {[%clk 0:01:20.8]} 33... Ke6 {[%clk 0:00:44.2]} 34. e3 {[%clk
0:01:19.4]} 34... h6 {[%clk 0:00:36.4]} 35. Kf3 {[%clk 0:01:16.5]} 35... f5
{[%clk 0:00:32.7]} 36. gxf5+ {[%clk 0:01:09.4]} 36... Kxf5 {[%clk 0:00:31.8]}
37. Rd6 {[%clk 0:01:08.7]} 37... g5 {[%clk 0:00:27.3]} 38. h5 {[%clk 0:01:06.1]}
38... Ra2 {[%clk 0:00:09.8]} 39. Rxh6 {[%clk 0:01:00.9]} 39... g4+ {[%clk
0:00:09]} 40. Kg3 {[%clk 0:01:02.1]} 40... Kg5 {[%clk 0:00:10.9]} 41. Rg6+
{[%clk 0:00:58.7]} 41... Kf5 {[%clk 0:00:04.7]} 42. Bd3+ {[%clk 0:00:56.9]}
42... Ke5 {[%clk 0:00:05.9]} 43. h6 {[%clk 0:00:57.9]} 43... Rh7 {[%clk
0:00:03.2]} 44. Ra6 {[%clk 0:00:55.4]} 44... Rh8 {[%clk 0:00:04.1]} 45. h7
{[%clk 0:00:55.6]} 1-0

[Event "*** Titled Tuesday Blitz"]
[Site "Chess.com"]
[Date "2020.02.04"]
[Round "3"]
[White "Reality-Stone"]
[Black "inegrepus"]
[Result "0-1"]
[WhiteElo "2472"]
[BlackElo "2270"]
[TimeControl "180+2"]
[EndTime "9:38:36 PST"]
[Termination "inegrepus won by checkmate"]

1. d4 {[%clk 0:03:01.9]} 1... Nf6 {[%clk 0:03:00.1]} 2. Bf4 {[%clk 0:03:01.9]}
2... d6 {[%clk 0:02:59]} 3. Nc3 {[%clk 0:03:02]} 3... c5 {[%clk 0:02:58.5]} 4.
d5 {[%clk 0:03:01.3]} 4... g6 {[%clk 0:02:57.2]} 5. e4 {[%clk 0:02:57.2]} 5...
Bg7 {[%clk 0:02:57.6]} 6. Qd2 {[%clk 0:02:57.1]} 6... a6 {[%clk 0:02:44.5]} 7.
a4 {[%clk 0:02:54.8]} 7... Qa5 {[%clk 0:02:42]} 8. h4 {[%clk 0:02:54.4]} 8... b5
{[%clk 0:02:36.2]} 9. e5 {[%clk 0:02:19.3]} 9... dxe5 {[%clk 0:02:27.5]} 10.
Bxe5 {[%clk 0:02:21.2]} 10... Nbd7 {[%clk 0:02:26.7]} 11. Nf3 {[%clk 0:02:11.4]}
11... Bb7 {[%clk 0:02:21.2]} 12. Be2 {[%clk 0:01:59.9]} 12... Nxe5 {[%clk
0:02:21.7]} 13. Nxe5 {[%clk 0:01:59.2]} 13... Nxd5 {[%clk 0:02:22.6]} 14. f4
{[%clk 0:01:33.1]} 14... Nxc3 {[%clk 0:02:06]} 15. bxc3 {[%clk 0:01:31]} 15...
Rd8 {[%clk 0:01:50.4]} 16. Qe3 {[%clk 0:01:31.1]} 16... Bxg2 {[%clk 0:01:12.8]}
17. Rg1 {[%clk 0:01:29.3]} 17... Ba8 {[%clk 0:01:09.8]} 18. Kf2 {[%clk
0:01:19.6]} 18... b4 {[%clk 0:01:05.2]} 19. h5 {[%clk 0:01:13.4]} 19... bxc3
{[%clk 0:00:52.6]} 20. Bc4 {[%clk 0:01:08.6]} 20... Bd5 {[%clk 0:00:45]} 21.
Bxd5 {[%clk 0:00:35]} 21... Rxd5 {[%clk 0:00:46.9]} 22. Rgd1 {[%clk 0:00:30.9]}
22... Rd4 {[%clk 0:00:28.8]} 23. Rab1 {[%clk 0:00:20.2]} 23... O-O {[%clk
0:00:27.4]} 24. hxg6 {[%clk 0:00:19.8]} 24... fxg6 {[%clk 0:00:26.2]} 25. Nc6
{[%clk 0:00:19.8]} 25... Rdxf4+ {[%clk 0:00:21.2]} 26. Kg2 {[%clk 0:00:18.3]}
26... Rf2+ {[%clk 0:00:20.8]} 27. Kg1 {[%clk 0:00:17.5]} 27... Qc7 {[%clk
0:00:19.2]} 28. Nxe7+ {[%clk 0:00:16.2]} 28... Kh8 {[%clk 0:00:19.5]} 29. Nxg6+
{[%clk 0:00:13.7]} 29... hxg6 {[%clk 0:00:18]} 30. Qh3+ {[%clk 0:00:14.7]} 30...
Kg8 {[%clk 0:00:18.4]} 31. Qe6+ {[%clk 0:00:11.4]} 31... R8f7 {[%clk 0:00:19.3]}
32. Qh3 {[%clk 0:00:05.4]} 32... Bd4 {[%clk 0:00:17.2]} 33. Rxd4 {[%clk
0:00:05.8]} 33... cxd4 {[%clk 0:00:17.8]} 34. a5 {[%clk 0:00:05.4]} 34... Qf4
{[%clk 0:00:17.9]} 35. Re1 {[%clk 0:00:04.5]} 35... Qg5+ {[%clk 0:00:16.9]} 36.
Kh1 {[%clk 0:00:03.7]} 36... Qd5+ {[%clk 0:00:17.1]} 37. Kg1 {[%clk 0:00:04.1]}
37... Qg5+ {[%clk 0:00:17.1]} 38. Kh1 {[%clk 0:00:05]} 38... Qf5 {[%clk
0:00:11.7]} 39. Qh6 {[%clk 0:00:02.1]} 39... Qf3+ {[%clk 0:00:10.9]} 40. Kg1
{[%clk 0:00:02.7]} 40... Qg2# {[%clk 0:00:12.8]} 0-1

[Event "*** Titled Tuesday Blitz"]
[Site "Chess.com"]
[Date "2020.02.04"]
[Round "3"]
[White "RoelandPruijssers"]
[Black "hanzo_hasashi1"]
[Result "0-1"]
[WhiteElo "2600"]
[BlackElo "2838"]
[TimeControl "180+2"]
[EndTime "9:38:37 PST"]
[Termination "hanzo_hasashi1 won by resignation"]

1. e4 {[%clk 0:03:01.9]} 1... c5 {[%clk 0:02:57.8]} 2. Nf3 {[%clk 0:03:02.2]}
2... d6 {[%clk 0:02:59]} 3. d4 {[%clk 0:03:03]} 3... cxd4 {[%clk 0:03:00.9]} 4.
Nxd4 {[%clk 0:03:04.3]} 4... Nf6 {[%clk 0:03:02.1]} 5. Nc3 {[%clk 0:03:05.4]}
5... a6 {[%clk 0:03:02.2]} 6. Be3 {[%clk 0:03:06.2]} 6... e5 {[%clk 0:03:02.6]}
7. Nb3 {[%clk 0:03:06.8]} 7... Be6 {[%clk 0:03:03.4]} 8. Qd2 {[%clk 0:03:06.1]}
8... Be7 {[%clk 0:02:58.6]} 9. O-O-O {[%clk 0:03:00.1]} 9... Nbd7 {[%clk
0:02:57.4]} 10. f3 {[%clk 0:02:54.5]} 10... b5 {[%clk 0:02:46.3]} 11. g4 {[%clk
0:02:31.1]} 11... b4 {[%clk 0:02:39.8]} 12. Nd5 {[%clk 0:02:19.3]} 12... Bxd5
{[%clk 0:02:36.1]} 13. exd5 {[%clk 0:02:19.9]} 13... a5 {[%clk 0:02:35.3]} 14.
Bb5 {[%clk 0:02:13.5]} 14... O-O {[%clk 0:02:27.9]} 15. Bc6 {[%clk 0:02:11.3]}
15... a4 {[%clk 0:02:25.2]} 16. Na1 {[%clk 0:02:06.1]} 16... Rb8 {[%clk
0:02:21.1]} 17. g5 {[%clk 0:01:56.9]} 17... Nh5 {[%clk 0:02:17.7]} 18. h4 {[%clk
0:01:58]} 18... f6 {[%clk 0:01:53.6]} 19. Bxa4 {[%clk 0:01:56.1]} 19... fxg5
{[%clk 0:01:48.2]} 20. hxg5 {[%clk 0:01:56.5]} 20... g6 {[%clk 0:01:42.3]} 21.
Qg2 {[%clk 0:01:19.9]} 21... Nb6 {[%clk 0:01:17.4]} 22. Bb3 {[%clk 0:01:12.3]}
22... Nf4 {[%clk 0:01:14.9]} 23. Qh2 {[%clk 0:00:58.2]} 23... Rf7 {[%clk
0:01:15.8]} 24. Bxf4 {[%clk 0:00:58.9]} 24... exf4 {[%clk 0:01:16.5]} 25. Rde1
{[%clk 0:00:51.9]} 25... Bxg5 {[%clk 0:01:08.8]} 26. Re6 {[%clk 0:00:52.6]}
26... Bf6 {[%clk 0:01:01.3]} 27. Kb1 {[%clk 0:00:52.8]} 27... Bd4 {[%clk
0:00:54.5]} 28. Qd2 {[%clk 0:00:39.5]} 28... Bc5 {[%clk 0:00:51.1]} 29. Qd3
{[%clk 0:00:40.1]} 29... Qg5 {[%clk 0:00:47.7]} 30. c3 {[%clk 0:00:37.1]} 30...
bxc3 {[%clk 0:00:46.4]} 31. Qxc3 {[%clk 0:00:35.7]} 31... Nd7 {[%clk 0:00:45.3]}
32. Rhe1 {[%clk 0:00:33.1]} 32... Bb4 {[%clk 0:00:40.6]} 33. Re8+ {[%clk
0:00:33.7]} 33... Rf8 {[%clk 0:00:38.7]} 34. Rxf8+ {[%clk 0:00:30.7]} 34... Nxf8
{[%clk 0:00:37.2]} 35. Qc7 {[%clk 0:00:30.8]} 35... Bxe1 {[%clk 0:00:34.8]} 36.
Qxb8 {[%clk 0:00:31.5]} 36... Qg1 {[%clk 0:00:33.1]} 37. a3 {[%clk 0:00:30.2]}
37... Bc3+ {[%clk 0:00:30.2]} 38. Ka2 {[%clk 0:00:30.7]} 38... Be5 {[%clk
0:00:30.4]} 39. Nc2 {[%clk 0:00:17.6]} 39... h5 {[%clk 0:00:27.7]} 40. a4 {[%clk
0:00:14.8]} 40... Qc1 {[%clk 0:00:26.4]} 41. Ka3 {[%clk 0:00:03.5]} 41... Qxb2+
{[%clk 0:00:26.3]} 42. Kb4 {[%clk 0:00:05]} 42... Qc3+ {[%clk 0:00:27.2]} 43.
Ka3 {[%clk 0:00:06.6]} 43... h4 {[%clk 0:00:27.9]} 44. a5 {[%clk 0:00:07.5]}
44... Qxa5+ {[%clk 0:00:28.4]} 45. Ba4 {[%clk 0:00:09.4]} 45... Qc3+ {[%clk
0:00:29.2]} 46. Bb3 {[%clk 0:00:10.1]} 46... h3 {[%clk 0:00:29.7]} 0-1

[Event "*** Titled Tuesday Blitz"]
[Site "Chess.com"]
[Date "2020.02.04"]
[Round "3"]
[White "Kira170"]
[Black "rpragchess"]
[Result "0-1"]
[WhiteElo "2501"]
[BlackElo "2817"]
[TimeControl "180+2"]
[EndTime "9:38:38 PST"]
[Termination "rpragchess won by resignation"]

1. d4 {[%clk 0:03:01.9]} 1... Nf6 {[%clk 0:02:58.9]} 2. Nc3 {[%clk 0:03:01.7]}
2... d5 {[%clk 0:02:57.7]} 3. Bf4 {[%clk 0:03:02.2]} 3... e6 {[%clk 0:02:58.2]}
4. e3 {[%clk 0:03:02.9]} 4... Be7 {[%clk 0:02:53.1]} 5. Nb5 {[%clk 0:03:00]}
5... Na6 {[%clk 0:02:53.7]} 6. c4 {[%clk 0:03:00.6]} 6... O-O {[%clk 0:02:50.4]}
7. Nf3 {[%clk 0:03:01.3]} 7... Bb4+ {[%clk 0:02:10.1]} 8. Nc3 {[%clk 0:03:00.6]}
8... c5 {[%clk 0:01:47.6]} 9. dxc5 {[%clk 0:02:47.5]} 9... Nxc5 {[%clk
0:01:25.9]} 10. Be2 {[%clk 0:02:48.3]} 10... Nce4 {[%clk 0:01:16.6]} 11. Qb3
{[%clk 0:02:22.7]} 11... Qa5 {[%clk 0:01:00.9]} 12. O-O {[%clk 0:02:23.3]} 12...
Bxc3 {[%clk 0:00:55.3]} 13. bxc3 {[%clk 0:02:23.7]} 13... b6 {[%clk 0:00:56.8]}
14. cxd5 {[%clk 0:02:06.9]} 14... Nxd5 {[%clk 0:00:56]} 15. Be5 {[%clk
0:02:07.9]} 15... Ba6 {[%clk 0:00:21.1]} 16. Bxa6 {[%clk 0:02:00.7]} 16... Qxa6
{[%clk 0:00:21.9]} 17. c4 {[%clk 0:02:02]} 17... Ne7 {[%clk 0:00:21.4]} 18. Rfd1
{[%clk 0:01:41.8]} 18... Rfd8 {[%clk 0:00:20.9]} 19. Qc2 {[%clk 0:01:26]} 19...
Qb7 {[%clk 0:00:19.1]} 20. Rd4 {[%clk 0:01:14.6]} 20... Rxd4 {[%clk 0:00:09.4]}
21. exd4 {[%clk 0:01:16.1]} 21... Rc8 {[%clk 0:00:10.6]} 22. Re1 {[%clk
0:01:14.7]} 22... f5 {[%clk 0:00:12.1]} 23. h4 {[%clk 0:00:36.1]} 23... Nc6
{[%clk 0:00:11]} 24. Qa4 {[%clk 0:00:16.4]} 24... Na5 {[%clk 0:00:11.2]} 25. c5
{[%clk 0:00:17.5]} 25... Qc6 {[%clk 0:00:12.3]} 26. Qb4 {[%clk 0:00:16.2]} 26...
Qd7 {[%clk 0:00:09.5]} 27. cxb6 {[%clk 0:00:16.6]} 27... Nc6 {[%clk 0:00:11.1]}
28. Qa3 {[%clk 0:00:14.7]} 28... axb6 {[%clk 0:00:12.2]} 29. Qb2 {[%clk
0:00:14]} 29... Qb7 {[%clk 0:00:11.6]} 30. h5 {[%clk 0:00:13.9]} 30... Ne7
{[%clk 0:00:12.7]} 31. h6 {[%clk 0:00:14.9]} 31... gxh6 {[%clk 0:00:12.8]} 32.
Nd2 {[%clk 0:00:15.8]} 32... Nxd2 {[%clk 0:00:12.7]} 33. Qxd2 {[%clk 0:00:16.9]}
33... Ng6 {[%clk 0:00:13.8]} 34. Qxh6 {[%clk 0:00:17.5]} 34... Rc2 {[%clk
0:00:14.1]} 35. Qg5 {[%clk 0:00:17.2]} 35... Qd7 {[%clk 0:00:13.9]} 36. Qf6
{[%clk 0:00:17.5]} 36... Rxa2 {[%clk 0:00:15]} 37. d5 {[%clk 0:00:16.6]} 37...
exd5 {[%clk 0:00:14.6]} 38. Bd4 {[%clk 0:00:17.5]} 38... Ra8 {[%clk 0:00:14.3]}
39. Qg5 {[%clk 0:00:13]} 39... Re8 {[%clk 0:00:14.3]} 40. Rb1 {[%clk 0:00:13.1]}
40... b5 {[%clk 0:00:13.8]} 41. Qf6 {[%clk 0:00:13.5]} 41... Re6 {[%clk
0:00:14.4]} 42. Qg5 {[%clk 0:00:14.1]} 42... Re4 {[%clk 0:00:15.7]} 43. Qf6
{[%clk 0:00:14.9]} 43... Re6 {[%clk 0:00:16.2]} 44. Qg5 {[%clk 0:00:15.5]} 44...
Qe7 {[%clk 0:00:14.5]} 45. Qd2 {[%clk 0:00:15.8]} 45... b4 {[%clk 0:00:14.9]}
46. Rxb4 {[%clk 0:00:15.1]} 46... Re1+ {[%clk 0:00:15.9]} 0-1